bitfinex-derivatives/quotes_BTCF0:USTF0_20251119
["timestamp","ask_amount","ask_price","bid_price","bid_amount"]
[1763548699008,0.18033598,91516.0,91515.0,0.1549391]
[1763548699416,0.13509598,91516.0,91515.0,0.1549391]
[1763548699611,0.02574488,91516.0,91515.0,0.1549391]
[1763548700209,0.02574488,91516.0,91515.0,0.5157391]
[1763548700712,0.1093483,91518.0,91515.0,0.5157391]
[1763548700713,0.00219803,91520.0,91519.0,0.04559]
[1763548700908,0.04743803,91520.0,91519.0,0.04559]
[1763548701109,0.07318164,91520.0,91519.0,0.04559]
[1763548701418,0.18252764,91520.0,91519.0,0.04559]
[1763548702120,0.18352764,91520.0,91519.0,0.04559]
[1763548702308,0.18452764,91520.0,91519.0,0.04559]
[1763548706210,0.18452714,91520.0,91519.0,0.04559]
[1763548706513,0.07518164,91520.0,91519.0,0.04559]
[1763548706713,0.02994164,91520.0,91519.0,0.04559]
[1763548707219,0.07173361,91520.0,91519.0,0.04559]
[1763548707424,0.07393164,91520.0,91519.0,0.04559]
[1763548710523,0.07393164,91520.0,91519.0,0.1549367]
[1763548711222,0.04818803,91520.0,91519.0,0.1549367]
[1763548715328,0.06180803,91520.0,91519.0,0.1549367]
[1763548717532,0.06180803,91520.0,91519.0,0.04559]
[1763548718021,0.08753677,91520.0,91519.0,0.04559]
[1763548719026,0.1545703,91516.0,91515.0,0.38348]
[1763548719425,0.18028469,91516.0,91515.0,0.38348]
[1763548720126,0.18028469,91516.0,91515.0,0.3608]
[1763548721536,0.18028469,91516.0,91515.0,0.38348]
[1763548722041,0.18028469,91516.0,91515.0,0.40576]
[1763548722640,0.07093439,91516.0,91515.0,0.40576]
[1763548723432,0.04522,91516.0,91515.0,0.40576]
[1763548725243,0.00219803,91520.0,91519.0,0.1543067]
[1763548725436,0.05091091,91520.0,91519.0,0.1543067]
[1763548725642,0.07317091,91520.0,91519.0,0.1543067]
[1763548726134,0.02575288,91520.0,91519.0,0.1543067]
[1763548728046,0.04871288,91520.0,91519.0,0.1543067]
[1763548728249,0.07317091,91520.0,91519.0,0.04496]
[1763548729761,0.18251641,91520.0,91519.0,0.04496]
[1763548731344,0.18251641,91520.0,91519.0,0.02268]
[1763548732151,0.18251641,91520.0,91519.0,0.04496]
[1763548734252,0.18251641,91520.0,91519.0,0.1543067]
[1763548734848,0.19613641,91520.0,91519.0,0.1543067]
[1763548739454,0.19613641,91520.0,91519.0,0.04496]
[1763548740252,0.1545691,91517.0,91516.0,0.10532]
[1763548740452,0.18032198,91517.0,91516.0,0.128]
[1763548740647,0.18032198,91517.0,91516.0,0.10532]
[1763548741553,0.04627,91516.0,91515.0,0.3608]
[1763548741759,0.07202288,91516.0,91515.0,0.3608]
[1763548744856,0.11121069,91516.0,91515.0,0.3608]
[1763548745056,0.11135818,91516.0,91515.0,0.3608]
[1763548746964,0.04575,91508.0,91507.0,0.14903]
[1763548747160,0.07150288,91508.0,91507.0,0.50983]
[1763548747362,0.18086278,91508.0,91507.0,0.50983]
[1763548750665,0.07150288,91508.0,91507.0,0.50983]
[1763548751167,0.1317876,91519.0,91507.0,0.46612]
[1763548751364,0.1550976,91519.0,91518.0,0.40451]
[1763548751664,0.02573281,91519.0,91518.0,0.5229779]
[1763548752367,0.04817281,91519.0,91518.0,0.5138579]
[1763548752568,0.07148281,91519.0,91518.0,0.40451]
[1763548757770,0.00219803,91520.0,91519.0,0.1530567]
[1763548758071,0.02792804,91520.0,91519.0,0.1530567]
[1763548758777,0.02573001,91520.0,91519.0,0.1530567]
[1763548759074,0.04817019,91522.0,91521.0,0.1530543]
[1763548759273,0.07148019,91522.0,91521.0,0.1530543]
[1763548759475,0.04817019,91522.0,91521.0,0.1530543]
[1763548759976,0.07148019,91522.0,91521.0,0.1530543]
[1763548760569,0.04817019,91522.0,91521.0,0.1530543]
[1763548760775,0.02573019,91522.0,91521.0,0.1530543]
[1763548760972,0.02573019,91522.0,91521.0,0.5138543]
[1763548761277,0.00016389,91523.0,91522.0,0.04371]
[1763548761478,0.1679781,91535.0,91534.0,0.1530388]
[1763548761661,0.1679781,91535.0,91534.0,0.5138388]
[1763548761662,0.08437329,91535.0,91534.0,0.5138388]
[1763548761867,0.07147329,91535.0,91534.0,0.5138388]
[1763548764279,0.07247329,91535.0,91534.0,0.5138388]
[1763548765180,0.04675,91535.0,91534.0,0.5138388]
[1763548766081,0.1560776,91535.0,91534.0,0.5138388]
[1763548766782,0.1700376,91535.0,91534.0,0.40451]
[1763548773784,0.06071,91535.0,91534.0,0.40451]
[1763548775791,0.001,91535.0,91534.0,0.40451]
[1763548776180,0.04523,91535.0,91534.0,0.40451]
[1763548777991,0.001,91535.0,91534.0,0.40451]
[1763548778881,0.02207,91535.0,91534.0,0.40451]
[1763548781287,0.001,91535.0,91534.0,0.40451]
[1763548781986,0.02367,91535.0,91534.0,0.40451]
[1763548782984,0.0454,91535.0,91534.0,0.40451]
[1763548783493,0.1547276,91535.0,91534.0,0.40451]
[1763548783688,0.18026318,91535.0,91534.0,0.40451]
[1763548783891,0.18026318,91535.0,91534.0,0.3608]
[1763548784088,0.18026318,91535.0,91534.0,0.38327]
[1763548784291,0.18026318,91535.0,91525.0,0.00016389]
[1763548784292,0.1537487,91526.0,91525.0,0.00016389]
[1763548784490,0.17928428,91526.0,91525.0,0.00016389]
[1763548785990,0.17928428,91526.0,91525.0,0.04536389]
[1763548786191,0.21857813,91526.0,91525.0,0.04536389]
[1763548786378,0.21857813,91526.0,91525.0,0.00016389]
[1763548786584,0.17928428,91526.0,91525.0,0.00016389]
[1763548790796,0.1537643,91513.0,91512.0,0.3608]
[1763548790992,0.17929988,91513.0,91512.0,0.3608]
[1763548791392,0.1537727,91506.0,91505.0,0.1545735]
[1763548792096,0.1537727,91506.0,91505.0,0.0452]
[1763548792293,0.17931201,91506.0,91505.0,0.0452]
[1763548793699,0.1537727,91506.0,91505.0,0.0452]
[1763548795201,0.1537727,91506.0,91505.0,0.02247]
[1763548795790,0.1537727,91506.0,91505.0,0.0452]
[1763548799998,0.0444,91506.0,91505.0,0.0452]
[1763548800594,0.01553803,91510.0,91504.0,0.406]
[1763548800595,0.1671139,91505.0,91504.0,0.406]
[1763548801292,0.1671139,91505.0,91504.0,0.3608]
[1763548801688,0.1671139,91505.0,91504.0,0.38327]
[1763548801891,0.1671139,91505.0,91504.0,0.40451]
[1763548802497,0.05774,91505.0,91504.0,0.5138851]
[1763548802699,0.0444,91505.0,91504.0,0.5138851]
[1763548802899,0.05825,91505.0,91504.0,0.5138851]
[1763548803494,0.02267,91505.0,91504.0,0.5138851]
[1763548803697,0.1320919,91507.0,91506.0,0.04386]
[1763548803908,0.02272,91507.0,91506.0,0.04386]
[1763548804597,0.1532115,91507.0,91506.0,0.04386]
[1763548804997,0.04384,91507.0,91506.0,0.04386]
[1763548808108,0.04384,91507.0,91506.0,0.1532327]
[1763548808291,0.04384,91507.0,91506.0,0.04386]
[1763548809507,0.04384,91507.0,91506.0,0.1532327]
[1763548812108,0.1532115,91507.0,91506.0,0.1532327]
[1763548812706,0.04384,91507.0,91506.0,0.1532327]
[1763548813102,0.06945638,91507.0,91506.0,0.1532327]
[1763548813295,0.02272,91507.0,91506.0,0.1532327]
[1763548813702,0.04384,91507.0,91506.0,0.1532327]
[1763548814109,0.06947312,91507.0,91506.0,0.1532327]
[1763548814611,0.06947312,91507.0,91506.0,0.04386]
[1763548816002,0.06947312,91507.0,91506.0,0.1532327]
[1763548816404,0.06947312,91507.0,91506.0,0.04386]
[1763548829115,0.17884462,91507.0,91506.0,0.04386]
[1763548829621,0.06947312,91507.0,91506.0,0.04386]
[1763548829822,0.1523527,91506.0,91505.0,0.131483]
[1763548830013,0.17798582,91506.0,91505.0,0.131483]
[1763548830410,0.17798582,91506.0,91505.0,0.153893]
[1763548830818,0.06861312,91506.0,91505.0,0.153893]
[1763548831621,0.17798582,91506.0,91505.0,0.153893]
[1763548831822,0.17798582,91506.0,91505.0,0.1538939]
[1763548833617,0.01309,91500.0,91496.0,0.04376389]
[1763548833821,0.1668599,91500.0,91499.0,0.10532]
[1763548834011,0.19476734,91500.0,91499.0,0.12771]
[1763548834212,0.19476734,91500.0,91499.0,0.14892]
[1763548837212,0.1537734,91497.0,91496.0,0.00016389]
[1763548837518,0.17948281,91497.0,91496.0,0.02255389]
[1763548838312,0.17948281,91497.0,91496.0,0.04376389]
[1763548839626,0.17948281,91497.0,91495.0,0.32596389]
[1763548839821,0.1537854,91487.0,91473.0,0.43894764]
[1763548840127,0.17949481,91487.0,91479.0,0.10532]
[1763548840525,0.17949481,91487.0,91486.0,0.10966987]
[1763548841328,0.17949481,91487.0,91486.0,0.11066987]
[1763548843125,0.17949481,91487.0,91486.0,0.11166987]
[1763548845125,0.1537854,91487.0,91486.0,0.13405987]
[1763548845425,0.1537854,91487.0,91486.0,0.15526987]
[1763548847035,0.1537854,91487.0,91486.0,0.04587327]
[1763548847532,0.1537854,91487.0,91486.0,0.15526987]
[1763548848333,0.1537854,91487.0,91486.0,0.12966987]
[1763548848533,0.1537854,91487.0,91486.0,0.15205987]
[1763548848736,0.1537854,91487.0,91486.0,0.02239]
[1763548848939,0.04439,91486.0,91485.0,0.38319]
[1763548849330,0.04439,91486.0,91485.0,0.4044]
[1763548850440,0.04439,91486.0,91485.0,0.4054]
[1763548850938,0.04439,91486.0,91485.0,0.4064]
[1763548851836,0.04439,91486.0,91485.0,0.38519]
[1763548852441,0.04439,91486.0,91485.0,0.4064]
[1763548861249,0.07010557,91486.0,91485.0,0.4064]
[1763548863748,0.07010557,91486.0,91485.0,0.002]
[1763548864053,0.07010557,91486.0,91465.0,0.3608]
[1763548864054,0.153511,91474.0,91468.0,0.1094179]
[1763548864254,0.153511,91474.0,91465.0,0.470221]
[1763548864453,0.1535205,91466.0,91465.0,0.38212]
[1763548864752,0.1094325,91457.0,91456.0,0.1538521]
[1763548865056,0.1535325,91457.0,91456.0,0.04442]
[1763548865458,0.1525325,91457.0,91456.0,0.04442]
[1763548865954,0.0441,91457.0,91456.0,0.04442]
[1763548866149,0.0431,91457.0,91456.0,0.04442]
[1763548866759,0.04629803,91460.0,91459.0,0.04442]
[1763548870548,0.00016398,91466.0,91465.0,0.04442]
[1763548870764,0.02252398,91466.0,91465.0,0.5146418]
[1763548870962,0.00016398,91466.0,91465.0,0.5146418]
[1763548871456,0.02252398,91466.0,91465.0,0.5146418]
[1763548871668,0.00016398,91466.0,91465.0,0.5146418]
[1763548872054,0.02252398,91466.0,91465.0,0.5146418]
[1763548872263,0.00016398,91466.0,91465.0,0.5146418]
[1763548872463,0.20451,91482.0,91481.0,0.1538227]
[1763548872758,0.12087872,91482.0,91481.0,0.1538227]
[1763548872962,0.06987022,91482.0,91481.0,0.1538227]
[1763548873359,0.04813022,91482.0,91481.0,0.1538227]
[1763548873956,0.06987022,91482.0,91481.0,0.04442]
[1763548876371,0.02577022,91482.0,91481.0,0.14974]
[1763548876669,0.00016398,91491.0,91490.0,0.1625519]
[1763548876868,0.02594072,91491.0,91490.0,0.1625519]
[1763548877475,0.00016398,91491.0,91490.0,0.1625519]
[1763548877977,0.00016398,91491.0,91490.0,0.2678719]
[1763548878160,0.1534757,91504.0,91503.0,0.1537964]
[1763548878355,0.17924445,91504.0,91503.0,0.1537964]
[1763548878760,0.17924445,91504.0,91503.0,0.04442]
[1763548879372,0.18024445,91504.0,91503.0,0.04442]
[1763548879572,0.18124445,91504.0,91503.0,0.04442]
[1763548880162,0.07186875,91504.0,91503.0,0.04442]
[1763548880363,0.07186875,91504.0,91503.0,0.02132]
[1763548880571,0.07186875,91504.0,91503.0,0.04442]
[1763548882363,0.002,91504.0,91503.0,0.04442]
[1763548886474,0.04642,91504.0,91503.0,0.04442]
[1763548893980,0.002,91504.0,91503.0,0.04442]
[1763548894777,0.04484398,91513.0,91512.0,0.04387]
[1763548895083,0.03633,91525.0,91524.0,0.1532213]
[1763548895286,0.04468,91525.0,91524.0,0.1532213]
[1763548897674,0.04668,91525.0,91524.0,0.1532213]
[1763548900886,0.002,91525.0,91524.0,0.1532213]
[1763548901378,0.02462,91525.0,91524.0,0.1532213]
[1763548902186,0.001,91525.0,91524.0,0.1532213]
[1763548902374,0.00016389,91534.0,91533.0,0.04387]
[1763548902578,0.00016389,91534.0,91533.0,0.5140106]
[1763548904077,0.04584389,91534.0,91533.0,0.5140106]
[1763548904881,0.04684389,91534.0,91533.0,0.5140106]
[1763548906187,0.04584389,91534.0,91533.0,0.5140106]
[1763548906779,0.04484389,91534.0,91533.0,0.5140106]
[1763548908887,0.00016389,91534.0,91533.0,0.5140106]
[1763548909383,0.03928253,91549.0,91533.0,0.5140106]
[1763548909384,0.06190253,91549.0,91548.0,0.1531926]
[1763548909589,0.07029228,91549.0,91548.0,0.1531926]
[1763548909986,0.17961388,91549.0,91548.0,0.1531926]
[1763548910386,0.18061388,91549.0,91548.0,0.1531926]
[1763548910981,0.07129228,91549.0,91548.0,0.1531926]
[1763548911187,0.07229228,91549.0,91548.0,0.1531926]
[1763548912287,0.07229228,91549.0,91548.0,0.04387]
[1763548916600,0.1540074,91544.0,91543.0,0.3608]
[1763548916796,0.10950007,91544.0,91543.0,0.4701286]
[1763548917095,0.07029228,91544.0,91543.0,0.5139986]
[1763548917800,0.17961968,91544.0,91543.0,0.5139986]
[1763548918587,0.18061968,91544.0,91543.0,0.5139986]
[1763548918791,0.07229228,91544.0,91543.0,0.5139986]
[1763548919803,0.07229228,91544.0,91543.0,0.40467]
[1763548920107,0.07229228,91544.0,91539.0,0.04403389]
[1763548920108,0.17017023,91540.0,91539.0,0.04403389]
[1763548920400,0.19578251,91540.0,91539.0,0.04403389]
[1763548923201,0.2349903,91540.0,91539.0,0.04403389]
[1763548923906,0.19578251,91540.0,91539.0,0.04403389]
[1763548924603,0.19578251,91540.0,91539.0,0.15336729]
[1763548927113,0.19578251,91540.0,91539.0,0.04403389]
[1763548927695,0.19578251,91540.0,91539.0,0.00016389]
[1763548927995,0.2349903,91540.0,91539.0,0.00016389]
[1763548928402,0.2349903,91540.0,91539.0,0.04428389]
[1763548929306,0.19578251,91540.0,91539.0,0.04428389]
[1763548929706,0.2349903,91540.0,91539.0,0.04428389]
[1763548930012,0.19578251,91540.0,91539.0,0.04428389]
[1763548930404,0.2349903,91540.0,91539.0,0.04428389]
[1763548930809,0.2359903,91540.0,91539.0,0.04428389]
[1763548931113,0.19678251,91540.0,91539.0,0.04428389]
[1763548931314,0.2369903,91540.0,91539.0,0.04428389]
[1763548932713,0.08845031,91540.0,91539.0,0.04428389]
[1763548933012,0.07449031,91540.0,91539.0,0.04428389]
[1763548934111,0.08840031,91540.0,91539.0,0.04428389]
[1763548937415,0.08840031,91540.0,91539.0,0.00016389]
[1763548937816,0.08840031,91540.0,91539.0,0.04428389]
[1763548938225,0.19773251,91540.0,91539.0,0.04428389]
[1763548938428,0.08840031,91540.0,91539.0,0.04428389]
[1763548939218,0.07449031,91540.0,91539.0,0.04428389]
[1763548939931,0.02981031,91540.0,91539.0,0.04428389]
[1763548940124,0.02761228,91540.0,91539.0,0.04428389]
[1763548942929,0.04933228,91540.0,91539.0,0.04428389]
[1763548943130,0.07207228,91540.0,91539.0,0.04428389]
[1763548943628,0.04933228,91540.0,91539.0,0.04428389]
[1763548944731,0.02761228,91540.0,91539.0,0.04428389]
[1763548945830,0.06986228,91540.0,91539.0,0.04428389]
[1763548946024,0.04868228,91540.0,91539.0,0.04428389]
[1763548946626,0.02761228,91540.0,91539.0,0.04428389]
[1763548948329,0.002,91540.0,91539.0,0.04428389]
[1763548948820,0.03920779,91554.0,91539.0,0.04428389]
[1763548949027,0.08145779,91554.0,91553.0,0.1553067]
[1763548949334,0.067908,91554.0,91553.0,0.15123]
[1763548949724,0.04225,91554.0,91553.0,0.15123]
[1763548949922,0.06890531,91554.0,91553.0,0.15123]
[1763548950730,0.06990531,91554.0,91553.0,0.15123]
[1763548951323,0.06890531,91554.0,91553.0,0.15123]
[1763548951630,0.06990531,91554.0,91553.0,0.15123]
[1763548955928,0.17922081,91554.0,91553.0,0.15123]
[1763548957138,0.17922081,91554.0,91553.0,0.2605467]
[1763548960732,0.17922081,91554.0,91553.0,0.1285]
[1763548960935,0.17922081,91554.0,91553.0,0.12856]
[1763548961139,0.04501,91551.0,91550.0,0.38412]
[1763548961334,0.17998441,91551.0,91550.0,0.46604]
[1763548962245,0.18098441,91551.0,91550.0,0.46604]
[1763548962547,0.18198441,91551.0,91550.0,0.48936]
[1763548962843,0.18198441,91551.0,91550.0,0.5986803]
[1763548963532,0.18198441,91551.0,91550.0,0.48936]
[1763548963838,0.00219803,91550.0,91540.0,0.10517343]
[1763548964034,0.04501,91541.0,91540.0,0.15011343]
[1763548964234,0.07066531,91541.0,91540.0,0.15018]
[1763548966346,0.07166531,91541.0,91540.0,0.15018]
[1763548966546,0.07266531,91541.0,91540.0,0.15018]
[1763548967636,0.07266531,91541.0,91540.0,0.04494]
[1763548967838,0.07266531,91541.0,91539.0,0.00016389]
[1763548967839,0.16986023,91540.0,91539.0,0.00016389]
[1763548968038,0.19551554,91540.0,91539.0,0.00016389]
[1763548968347,0.04501,91521.0,91520.0,0.15011343]
[1763548968643,0.04501,91521.0,91520.0,0.15018]
[1763548969845,0.07050338,91521.0,91520.0,0.15018]
[1763548973449,0.07047633,91521.0,91520.0,0.15018]
[1763548973841,0.04501,91521.0,91520.0,0.16328]
[1763548974048,0.02271,91521.0,91520.0,0.16328]
[1763548974346,0.04501,91521.0,91520.0,0.16328]
[1763548979057,0.04501,91521.0,91520.0,0.15018]
[1763548981650,0.04501,91521.0,91520.0,0.04494]
[1763548987057,0.04491,91521.0,91520.0,0.04494]
[1763548988755,0.16853413,91520.0,91519.0,0.3608]
[1763548988952,0.19398686,91520.0,91519.0,0.3608]
[1763548989659,0.19398686,91520.0,91519.0,0.40477]
[1763548990558,0.19398686,91520.0,91519.0,0.38292]
[1763548991058,0.19398686,91520.0,91519.0,0.40477]
[1763548995954,0.19398686,91520.0,91519.0,0.04397]
[1763548999252,0.02545273,91520.0,91519.0,0.04397]
[1763548999658,0.04391389,91530.0,91529.0,0.04397]
[1763548999864,0.07163398,91530.0,91529.0,0.40477]
[1763549001567,0.07263398,91530.0,91529.0,0.40477]
[1763549002160,0.07163398,91530.0,91529.0,0.40477]
[1763549006767,0.18097818,91530.0,91529.0,0.40477]
[1763549007166,0.18097818,91530.0,91529.0,0.04397]
[1763549008164,0.18097818,91530.0,91529.0,0.02212]
[1763549008360,0.1667013,91524.0,91523.0,0.14743]
[1763549008565,0.19222336,91524.0,91523.0,0.14743]
[1763549009874,0.19222336,91524.0,91523.0,0.04215]
[1763549012870,0.16906413,91520.0,91519.0,0.14996]
[1763549013071,0.19458619,91520.0,91519.0,0.14996]
[1763549015077,0.19458619,91520.0,91519.0,0.2593173]
[1763549017170,0.08523009,91520.0,91519.0,0.2593173]
[1763549017370,0.02552206,91520.0,91519.0,0.2593173]
[1763549017575,0.00016389,91530.0,91529.0,0.04472]
[1763549017776,0.04660192,91530.0,91529.0,0.04472]
[1763549018079,0.07214278,91530.0,91529.0,0.04472]
[1763549021988,0.04917278,91530.0,91529.0,0.04472]
[1763549022284,0.07214278,91530.0,91529.0,0.04472]
[1763549023282,0.04697475,91530.0,91529.0,0.04472]
[1763549023485,0.07214278,91530.0,91529.0,0.04472]
[1763549024685,0.06994475,91530.0,91529.0,0.04472]
[1763549025384,0.02570475,91530.0,91529.0,0.04472]
[1763549025985,0.00016389,91530.0,91529.0,0.04472]
[1763549027689,0.00016389,91530.0,91529.0,0.04572]
[1763549028375,0.00016389,91530.0,91529.0,0.04672]
[1763549028376,0.02143389,91530.0,91529.0,0.04672]
[1763549028579,0.04440389,91530.0,91529.0,0.04672]
[1763549028783,0.04440389,91530.0,91529.0,0.04572]
[1763549029185,0.04440389,91530.0,91529.0,0.04472]
[1763549029890,0.00016389,91530.0,91529.0,0.04472]
[1763549030787,0.04440389,91530.0,91529.0,0.04472]
[1763549030985,0.05987192,91530.0,91529.0,0.04472]
[1763549031186,0.04440389,91530.0,91529.0,0.04472]
[1763549032580,0.04660192,91530.0,91529.0,0.04472]
[1763549032787,0.05987192,91530.0,91529.0,0.14996]
[1763549032987,0.08536931,91530.0,91529.0,0.14996]
[1763549037191,0.1093489,91526.0,91525.0,0.7216]
[1763549037396,0.17908629,91526.0,91525.0,0.38252]
[1763549038093,0.17908629,91526.0,91525.0,0.40552]
[1763549038300,0.06973739,91526.0,91525.0,0.40552]
[1763549038596,0.06973739,91526.0,91525.0,0.5148701]
[1763549038597,0.17908629,91526.0,91525.0,0.5148701]
[1763549039291,0.06973739,91526.0,91525.0,0.5148701]
[1763549040296,0.06973739,91526.0,91525.0,0.40552]
[1763549040502,0.06973739,91526.0,91525.0,0.38252]
[1763549040989,0.06973739,91526.0,91525.0,0.3608]
[1763549041884,0.06973739,91526.0,91525.0,0.38252]
[1763549042286,0.06973739,91526.0,91525.0,0.3608]
[1763549043085,0.06973739,91526.0,91525.0,0.38355]
[1763549043500,0.06973739,91526.0,91525.0,0.40521]
[1763549046300,0.1547444,91513.0,91512.0,0.40521]
[1763549046495,0.18024179,91513.0,91512.0,0.51045]
[1763549047493,0.18024179,91513.0,91512.0,0.51145]
[1763549047901,0.18024179,91513.0,91512.0,0.51045]
[1763549050092,0.18024179,91513.0,91512.0,0.51145]
[1763549050596,0.18024179,91513.0,91512.0,0.51045]
[1763549053299,0.18024179,91513.0,91512.0,0.40521]
[1763549055891,0.07087739,91513.0,91512.0,0.40521]
[1763549056098,0.07087739,91513.0,91512.0,0.41793]
[1763549058199,0.07087739,91513.0,91512.0,0.40521]
[1763549060000,0.02549739,91513.0,91512.0,0.41816]
[1763549060193,0.109354,91514.0,91513.0,0.04441]
[1763549060398,0.13687787,91514.0,91513.0,0.153764]
[1763549062197,0.13687787,91514.0,91513.0,0.04441]
[1763549066403,0.15965787,91514.0,91513.0,0.04441]
[1763549067312,0.05030387,91514.0,91513.0,0.04441]
[1763549067910,0.02752387,91514.0,91513.0,0.04441]
[1763549070213,0.02752387,91514.0,91513.0,0.04541]
[1763549072814,1e-08,91514.0,91513.0,0.04541]
[1763549073017,0.02335389,91530.0,91529.0,0.1527848]
[1763549073313,0.02335389,91530.0,91529.0,0.6188248]
[1763549076314,0.00016389,91530.0,91529.0,0.6188248]
[1763549077210,0.04667389,91530.0,91529.0,0.50949]
[1763549081212,0.04887192,91530.0,91529.0,0.50949]
[1763549084918,0.07615791,91530.0,91529.0,0.50949]
[1763549085118,0.07615791,91530.0,91529.0,0.3608]
[1763549085729,0.07615791,91530.0,91529.0,0.38201]
[1763549086727,0.07615791,91530.0,91529.0,0.40425]
[1763549092320,0.07615791,91530.0,91529.0,0.5135847]
[1763549092717,0.02964791,91530.0,91529.0,0.5135847]
[1763549093332,0.05283791,91530.0,91529.0,0.5135847]
[1763549093732,0.07615791,91530.0,91529.0,0.5135847]
[1763549096025,0.07615791,91530.0,91529.0,0.40425]
[1763549101431,0.07615791,91530.0,91515.0,0.1093513]
[1763549101432,0.1558627,91514.0,91502.0,0.3608]
[1763549101639,0.13663869,91514.0,91513.0,0.02121]
[1763549101834,0.18092869,91514.0,91513.0,0.04423]
[1763549103537,0.18192869,91514.0,91513.0,0.04423]
[1763549103932,0.18292869,91514.0,91513.0,0.04423]
[1763549107848,0.04429,91512.0,91511.0,9e-08]
[1763549108137,0.04429,91512.0,91483.0,0.37189094]
[1763549108138,0.1664054,91495.0,91494.0,0.40565]
[1763549108342,0.19369139,91495.0,91494.0,0.38263]
[1763549108646,0.1536749,91487.0,91486.0,0.04512327]
[1763549108939,0.1536749,91487.0,91462.0,0.40565]
[1763549108940,0.1537036,91463.0,91462.0,0.40565]
[1763549109331,0.1815054,91463.0,91462.0,0.04485]
[1763549109637,0.0720918,91463.0,91462.0,0.04485]
[1763549113129,0.04429,91463.0,91462.0,0.04485]
[1763549113734,0.0720042,91463.0,91462.0,0.04485]
[1763549113935,0.04429,91463.0,91462.0,0.04485]
[1763549115140,0.04429,91463.0,91460.0,0.10524]
[1763549115141,0.38216,91468.0,91467.0,0.04485]
[1763549115444,0.40509,91468.0,91467.0,0.04485]
[1763549116135,0.40509,91468.0,91467.0,0.02183]
[1763549116843,0.40509,91468.0,91467.0,0.04485]
[1763549118843,0.40609,91468.0,91467.0,0.04485]
[1763549121042,0.40709,91468.0,91467.0,0.04485]
[1763549121837,0.40609,91468.0,91467.0,0.04485]
[1763549122145,0.40509,91468.0,91467.0,0.04485]
[1763549123346,0.40609,91468.0,91467.0,0.04485]
[1763549124138,0.40709,91468.0,91467.0,0.04485]
[1763549124940,0.40609,91468.0,91467.0,0.02183]
[1763549125135,0.40509,91468.0,91467.0,0.04422]
[1763549126349,0.40609,91468.0,91467.0,0.04422]
[1763549126947,0.40709,91468.0,91467.0,0.04422]
[1763549127751,0.5164976,91468.0,91467.0,0.04422]
[1763549128143,0.54318725,91468.0,91467.0,0.04422]
[1763549128447,0.54218725,91468.0,91467.0,0.04422]
[1763549130447,0.153152,91456.0,91455.0,7.99e-05]
[1763549130854,0.18087917,91456.0,91455.0,7.99e-05]
[1763549131349,0.1531783,91434.0,91433.0,0.40583]
[1763549131552,0.1531783,91434.0,91433.0,0.3608]
[1763549131755,0.18091822,91434.0,91433.0,0.3608]
[1763549132054,0.18091822,91434.0,91433.0,0.383]
[1763549132357,0.18103536,91434.0,91433.0,0.384]
[1763549132850,0.18103536,91434.0,91424.0,0.000164]
[1763549132851,0.1524491,91425.0,91424.0,0.000164]
[1763549133045,0.18018902,91425.0,91424.0,0.000164]
[1763549134052,0.18018902,91425.0,91424.0,0.045664]
[1763549134249,0.18018902,91425.0,91424.0,0.046664]
[1763549134646,0.18018902,91425.0,91424.0,0.047664]
[1763549135452,0.07072992,91425.0,91424.0,0.047664]
[1763549135643,0.02773992,91425.0,91424.0,0.047664]
[1763549135852,0.04968992,91425.0,91424.0,0.047664]
[1763549136954,0.07072992,91425.0,91424.0,0.047664]
[1763549143557,0.07072992,91425.0,91424.0,0.002164]
[1763549149261,0.07072992,91425.0,91414.0,0.10536]
[1763549149262,0.1524611,91415.0,91414.0,0.10536]
[1763549149565,0.07072992,91415.0,91414.0,0.15086]
[1763549149766,0.04968992,91415.0,91414.0,0.15086]
[1763549150059,0.18020102,91415.0,91414.0,0.13992]
[1763549150655,0.18020102,91415.0,91414.0,0.14092]
[1763549151365,0.18020102,91415.0,91414.0,0.13992]
[1763549151567,0.18020102,91415.0,91414.0,0.14092]
[1763549152367,0.1524635,91413.0,91412.0,0.383]
[1763549152566,0.1524683,91409.0,91408.0,0.15086]
[1763549152769,0.18020822,91409.0,91408.0,0.15086]
[1763549153963,0.02773992,91409.0,91408.0,0.15086]
[1763549155866,0.000164,91424.0,91423.0,0.1549615]
[1763549156166,0.000164,91424.0,91423.0,0.5157615]
[1763549156566,0.02834239,91424.0,91423.0,0.5157615]
[1763549157063,0.02934239,91424.0,91423.0,0.5157615]
[1763549157471,0.02834239,91424.0,91423.0,0.5157615]
[1763549157661,0.02934239,91424.0,91423.0,0.5157615]
[1763549157866,0.03034239,91424.0,91423.0,0.5157615]
[1763549158668,0.02934239,91424.0,91423.0,0.5157615]
[1763549159760,0.02834239,91424.0,91423.0,0.5157615]
[1763549161270,0.02826249,91424.0,91423.0,0.5157615]
[1763549161466,0.03933086,91444.0,91443.0,0.04399]
[1763549161770,0.15660813,91450.0,91449.0,0.04345]
[1763549161969,0.04717803,91450.0,91449.0,0.04345]
[1763549162467,0.02421803,91450.0,91449.0,0.04345]
[1763549163076,0.02521803,91450.0,91449.0,0.04345]
[1763549163471,0.04717803,91450.0,91449.0,0.04345]
[1763549163671,0.04817803,91450.0,91449.0,0.04345]
[1763549164672,0.04917803,91450.0,91449.0,0.04345]
[1763549165666,0.04817803,91450.0,91449.0,0.04345]
[1763549165866,0.04917803,91450.0,91449.0,0.04345]
[1763549166268,0.04817803,91450.0,91449.0,0.04345]
[1763549166475,0.04917803,91450.0,91449.0,0.04345]
[1763549167477,0.04498,91444.0,91443.0,0.50961]
[1763549168775,0.04598,91444.0,91443.0,0.50961]
[1763549169178,0.04698,91444.0,91443.0,0.50961]
[1763549170279,0.04698,91444.0,91443.0,0.40425]
[1763549170475,0.04698,91444.0,91443.0,0.50961]
[1763549171079,0.002,91444.0,91443.0,0.50961]
[1763549177192,0.01399,91476.0,91458.0,0.1528696]
[1763549177490,0.1094123,91465.0,91458.0,0.50961]
[1763549177689,0.02218409,91459.0,91458.0,0.50961]
[1763549177888,0.04514409,91459.0,91458.0,0.50961]
[1763549178085,0.02218409,91459.0,91458.0,0.50961]
[1763549178282,0.04514409,91459.0,91458.0,0.50961]
[1763549179988,0.02218409,91459.0,91458.0,0.50961]
[1763549180187,0.00016409,91459.0,91458.0,0.50961]
[1763549183985,0.0595,91476.0,91475.0,0.1093993]
[1763549184299,0.08777584,91476.0,91475.0,0.1535393]
[1763549184697,0.19717394,91476.0,91475.0,0.1535393]